[Event "Titled Tuesday Blitz May 16 Early 2023"]
[White "Cramling Bellon, Anna"]
[Black "Topalov, Aleksandar"]
[WhiteFideId "32009232"]
[BlackFideId "925659"]
[WhiteElo "1976"]
[BlackElo "2151"]
[Result "0-1"]
[Round "11"]
[TimeControl "180+2"]
[Date "2023.05.16"]
[WhiteClock "0:00:00"]
[BlackClock "0:00:05"]

1. d4 {[%clk 0:03:00]}  Nf6 {[%clk 0:02:59]} 2. c4 {[%clk 0:03:00]}  c5 {[%clk 0:02:59]} 3. d5 {[%clk 0:03:01]}  d6 {[%clk 0:02:59]} 4. Nc3 {[%clk 0:03:01]}  g6 {[%clk 0:02:59]} 5. e4 {[%clk 0:03:00]}  Bg7 {[%clk 0:02:59]} 6. f4 {[%clk 0:02:58]}  O-O {[%clk 0:02:59]} 7. Nf3 {[%clk 0:02:54]}  e6 {[%clk 0:03:00]} 8. Bd3 {[%clk 0:02:50]}  exd5 {[%clk 0:02:56]} 9. cxd5 {[%clk 0:02:51]}  b5 {[%clk 0:02:42]} 10. Bxb5 {[%clk 0:02:31]}  Nxe4 {[%clk 0:02:35]} 11. Nxe4 {[%clk 0:01:57]}  Qa5+ {[%clk 0:02:35]} 12. Nc3 {[%clk 0:01:49]}  Bxc3+ {[%clk 0:02:34]} 13. bxc3 {[%clk 0:01:49]}  Qxb5 {[%clk 0:02:34]} 14. Kf2 {[%clk 0:01:32]}  Nd7 {[%clk 0:02:07]} 15. Re1 {[%clk 0:01:25]}  Nb6 {[%clk 0:02:00]} 16. a4 {[%clk 0:01:15]}  Qc4 {[%clk 0:01:56]} 17. a5 {[%clk 0:00:44]}  Nd7 {[%clk 0:00:31]} 18. Ra4 {[%clk 0:00:44]}  Qa6 {[%clk 0:00:28]} 19. c4 {[%clk 0:00:40]}  f6 {[%clk 0:00:12]} 20. Bb2 {[%clk 0:00:20]}  Rf7 {[%clk 0:00:12]} 21. Re8+ {[%clk 0:00:17]}  Nf8 {[%clk 0:00:12]} 22. Qe1 {[%clk 0:00:09]}  Rb8 {[%clk 0:00:10]} 23. Qc3 {[%clk 0:00:09]}  Rxb2+ {[%clk 0:00:08]} 24. Qxb2 {[%clk 0:00:09]}  Bd7 {[%clk 0:00:08]} 25. Rb8 {[%clk 0:00:07]}  Bxa4 {[%clk 0:00:08]} 26. h4 {[%clk 0:00:02]}  Qxc4 {[%clk 0:00:06]} 27. h5 {[%clk 0:00:02]}  Qxd5 {[%clk 0:00:05]} 28. hxg6 {[%clk 0:00:00]}  hxg6 {[%clk 0:00:05]} 0-1


[Site "https://www.chess.com"]

[Event "Titled Tuesday Blitz May 16 Early 2023"]
[White "Yonal, Timur"]
[Black "Shubenkova, Veronika"]
[WhiteFideId "44115725"]
[BlackFideId "44124040"]
[WhiteElo "1966"]
[BlackElo "2060"]
[Result "0-1"]
[Round "11"]
[TimeControl "180+2"]
[Date "2023.05.16"]
[WhiteClock "0:00:00"]
[BlackClock "0:02:04"]

1. e4 {[%clk 0:03:00]}  e6 {[%clk 0:02:58]} 2. d4 {[%clk 0:03:00]}  d5 {[%clk 0:02:58]} 3. Nc3 {[%clk 0:02:59]}  Nf6 {[%clk 0:02:58]} 4. Bg5 {[%clk 0:02:58]}  Be7 {[%clk 0:02:58]} 5. e5 {[%clk 0:02:59]}  Nfd7 {[%clk 0:02:58]} 6. Bxe7 {[%clk 0:02:59]}  Qxe7 {[%clk 0:02:58]} 7. f4 {[%clk 0:03:00]}  a6 {[%clk 0:02:58]} 8. Qg4 {[%clk 0:03:00]}  g6 {[%clk 0:02:58]} 9. Nf3 {[%clk 0:02:57]}  h5 {[%clk 0:02:58]} 10. Qg3 {[%clk 0:02:55]}  c5 {[%clk 0:02:58]} 11. O-O-O {[%clk 0:02:55]}  cxd4 {[%clk 0:02:58]} 12. Nxd4 {[%clk 0:02:54]}  Nc6 {[%clk 0:02:59]} 13. Qe3 {[%clk 0:02:50]}  Qc5 {[%clk 0:02:56]} 14. Kb1 {[%clk 0:02:44]}  b5 {[%clk 0:02:55]} 15. Qg1 {[%clk 0:02:33]}  Bb7 {[%clk 0:02:51]} 16. Nxc6 {[%clk 0:02:29]}  Qxc6 {[%clk 0:02:51]} 17. Ne2 {[%clk 0:02:28]}  O-O-O {[%clk 0:02:50]} 18. Nd4 {[%clk 0:02:28]}  Qc7 {[%clk 0:02:50]} 19. Rd3 {[%clk 0:02:23]}  Kb8 {[%clk 0:02:49]} 20. Rc3 {[%clk 0:02:20]}  Qb6 {[%clk 0:02:48]} 21. a3 {[%clk 0:02:12]}  Rc8 {[%clk 0:02:46]} 22. Rxc8+ {[%clk 0:02:08]}  Rxc8 {[%clk 0:02:46]} 23. Bd3 {[%clk 0:02:09]}  Nc5 {[%clk 0:02:42]} 24. Qe3 {[%clk 0:02:07]}  Nxd3 {[%clk 0:02:40]} 25. Qxd3 {[%clk 0:02:08]}  Rc4 {[%clk 0:02:40]} 26. Rd1 {[%clk 0:02:05]}  b4 {[%clk 0:02:37]} 27. axb4 {[%clk 0:01:36]}  Rxb4 {[%clk 0:02:37]} 28. b3 {[%clk 0:01:05]}  a5 {[%clk 0:02:36]} 29. c3 {[%clk 0:00:55]}  Rxb3+ {[%clk 0:02:36]} 30. Nxb3 {[%clk 0:00:54]}  Qxb3+ {[%clk 0:02:37]} 31. Kc1 {[%clk 0:00:55]}  a4 {[%clk 0:02:32]} 32. Rd2 {[%clk 0:00:47]}  a3 {[%clk 0:02:30]} 33. Qc2 {[%clk 0:00:45]}  Qc4 {[%clk 0:02:27]} 34. Qa2 {[%clk 0:00:41]}  Qxc3+ {[%clk 0:02:26]} 35. Kd1 {[%clk 0:00:36]}  d4 {[%clk 0:02:24]} 36. Qc2 {[%clk 0:00:26]}  Qe3 {[%clk 0:02:14]} 37. Qd3 {[%clk 0:00:00]}  a2 {[%clk 0:02:04]} 0-1


[Site "https://www.chess.com"]

[Event "Titled Tuesday Blitz May 16 Early 2023"]
[White "Ansh M Shah"]
[Black "Jiganchine, Roman"]
[WhiteFideId "25033379"]
[BlackFideId "2603667"]
[WhiteElo "2084"]
[BlackElo "2267"]
[Result "0-1"]
[Round "11"]
[TimeControl "180+2"]
[Date "2023.05.16"]
[WhiteClock "0:01:45"]
[BlackClock "0:00:14"]

1. d4 {[%clk 0:03:00]}  d5 {[%clk 0:02:45]} 2. c4 {[%clk 0:03:00]}  e6 {[%clk 0:02:44]} 3. g3 {[%clk 0:02:55]}  Nf6 {[%clk 0:02:43]} 4. Bg2 {[%clk 0:02:56]}  Bd6 {[%clk 0:02:42]} 5. Nf3 {[%clk 0:02:56]}  O-O {[%clk 0:02:42]} 6. O-O {[%clk 0:02:57]}  h6 {[%clk 0:02:41]} 7. Nc3 {[%clk 0:02:57]}  Nc6 {[%clk 0:02:41]} 8. Nd2 {[%clk 0:02:58]}  Nxd4 {[%clk 0:02:13]} 9. cxd5 {[%clk 0:02:56]}  exd5 {[%clk 0:02:01]} 10. e3 {[%clk 0:02:48]}  Nc6 {[%clk 0:01:51]} 11. Nxd5 {[%clk 0:02:36]}  Be6 {[%clk 0:01:33]} 12. Nxf6+ {[%clk 0:02:32]}  Qxf6 {[%clk 0:01:33]} 13. Ne4 {[%clk 0:02:33]}  Qe7 {[%clk 0:01:22]} 14. Nxd6 {[%clk 0:02:33]}  Rfd8 {[%clk 0:01:12]} 15. Bd2 {[%clk 0:02:20]}  Rxd6 {[%clk 0:01:10]} 16. Qc2 {[%clk 0:02:20]}  Qg5 {[%clk 0:00:57]} 17. Bc3 {[%clk 0:02:15]}  Rad8 {[%clk 0:00:48]} 18. Qb3 {[%clk 0:02:12]}  Bxb3 {[%clk 0:00:47]} 19. axb3 {[%clk 0:02:12]}  a6 {[%clk 0:00:46]} 20. b4 {[%clk 0:02:12]}  Qb5 {[%clk 0:00:43]} 21. Rfc1 {[%clk 0:02:03]}  Nxb4 {[%clk 0:00:36]} 22. Bf1 {[%clk 0:02:03]}  Nd3 {[%clk 0:00:36]} 23. Rd1 {[%clk 0:02:02]}  Qf5 {[%clk 0:00:31]} 24. Rd2 {[%clk 0:01:59]}  Ne1 {[%clk 0:00:16]} 25. Rxd6 {[%clk 0:01:55]}  Nf3+ {[%clk 0:00:16]} 26. Kg2 {[%clk 0:01:55]}  Rxd6 {[%clk 0:00:15]} 27. Be2 {[%clk 0:01:52]}  Ng5 {[%clk 0:00:15]} 28. h4 {[%clk 0:01:50]}  Qe4+ {[%clk 0:00:15]} 29. Kg1 {[%clk 0:01:49]}  Nf3+ {[%clk 0:00:15]} 30. Kf1 {[%clk 0:01:48]}  Nh2+ {[%clk 0:00:15]} 31. Kg1 {[%clk 0:01:48]}  Nf3+ {[%clk 0:00:15]} 32. Kf1 {[%clk 0:01:48]}  Nxh4 {[%clk 0:00:15]} 33. Kg1 {[%clk 0:01:45]}  Qg2# {[%clk 0:00:14]} 0-1


[Site "https://www.chess.com"]

[Event "Titled Tuesday Blitz May 16 Early 2023"]
[White "lluiss"]
[Black "Mazurkiewicz, Michal"]
[BlackFideId "1124943"]
[WhiteElo "2283"]
[BlackElo "2054"]
[Result "0-1"]
[Round "11"]
[TimeControl "180+2"]
[Date "2023.05.16"]
[WhiteClock "0:00:04"]
[BlackClock "0:00:12"]

1. Nf3 {[%clk 0:03:00]}  Nf6 {[%clk 0:02:59]} 2. c4 {[%clk 0:03:00]}  g6 {[%clk 0:03:00]} 3. g3 {[%clk 0:03:00]}  Bg7 {[%clk 0:03:00]} 4. Bg2 {[%clk 0:03:00]}  O-O {[%clk 0:03:01]} 5. O-O {[%clk 0:03:01]}  d6 {[%clk 0:03:02]} 6. d4 {[%clk 0:03:00]}  c5 {[%clk 0:03:02]} 7. Nc3 {[%clk 0:03:00]}  cxd4 {[%clk 0:03:03]} 8. Nxd4 {[%clk 0:03:00]}  Qa5 {[%clk 0:03:04]} 9. Nd5 {[%clk 0:02:47]}  Nxd5 {[%clk 0:03:03]} 10. cxd5 {[%clk 0:02:48]}  Na6 {[%clk 0:02:58]} 11. Bd2 {[%clk 0:02:44]}  Qb6 {[%clk 0:02:54]} 12. Bc3 {[%clk 0:02:44]}  Bd7 {[%clk 0:02:54]} 13. e3 {[%clk 0:02:32]}  Rfc8 {[%clk 0:02:52]} 14. Rc1 {[%clk 0:02:27]}  Nc5 {[%clk 0:02:52]} 15. b3 {[%clk 0:02:15]}  Qa6 {[%clk 0:02:48]} 16. Qd2 {[%clk 0:02:12]}  Nd3 {[%clk 0:02:43]} 17. Ra1 {[%clk 0:02:00]}  Rc7 {[%clk 0:02:17]} 18. Rfd1 {[%clk 0:02:00]}  Nc5 {[%clk 0:02:17]} 19. Bf1 {[%clk 0:01:51]}  b5 {[%clk 0:02:17]} 20. Rac1 {[%clk 0:01:41]}  Ne4 {[%clk 0:02:16]} 21. Qb2 {[%clk 0:01:37]}  Nxc3 {[%clk 0:02:15]} 22. Rxc3 {[%clk 0:01:36]}  Rxc3 {[%clk 0:02:14]} 23. Qxc3 {[%clk 0:01:37]}  Rc8 {[%clk 0:01:52]} 24. Qd2 {[%clk 0:01:37]}  Qb6 {[%clk 0:01:46]} 25. b4 {[%clk 0:01:34]}  Bxd4 {[%clk 0:01:30]} 26. exd4 {[%clk 0:01:24]}  Qc7 {[%clk 0:01:31]} 27. Bd3 {[%clk 0:01:20]}  Qc3 {[%clk 0:01:25]} 28. Qxc3 {[%clk 0:01:00]}  Rxc3 {[%clk 0:01:26]} 29. Kg2 {[%clk 0:00:47]}  Bc8 {[%clk 0:01:26]} 30. Be4 {[%clk 0:00:41]}  h5 {[%clk 0:01:10]} 31. Rd2 {[%clk 0:00:39]}  Bb7 {[%clk 0:01:08]} 32. h4 {[%clk 0:00:31]}  f5 {[%clk 0:00:58]} 33. Bf3 {[%clk 0:00:30]}  Kf7 {[%clk 0:00:58]} 34. Re2 {[%clk 0:00:20]}  Rc4 {[%clk 0:00:40]} 35. Re3 {[%clk 0:00:18]}  Rxb4 {[%clk 0:00:34]} 36. Rc3 {[%clk 0:00:18]}  Rc4 {[%clk 0:00:34]} 37. Rxc4 {[%clk 0:00:18]}  bxc4 {[%clk 0:00:35]} 38. Kf1 {[%clk 0:00:18]}  Kf6 {[%clk 0:00:32]} 39. Ke1 {[%clk 0:00:18]}  e6 {[%clk 0:00:32]} 40. Kd2 {[%clk 0:00:18]}  Bxd5 {[%clk 0:00:31]} 41. Be2 {[%clk 0:00:18]}  e5 {[%clk 0:00:31]} 42. Kc3 {[%clk 0:00:16]}  g5 {[%clk 0:00:23]} 43. a4 {[%clk 0:00:11]}  f4 {[%clk 0:00:20]} 44. a5 {[%clk 0:00:08]}  gxh4 {[%clk 0:00:09]} 45. gxh4 {[%clk 0:00:08]}  f3 {[%clk 0:00:09]} 46. Bxc4 {[%clk 0:00:06]}  Bxc4 {[%clk 0:00:09]} 47. Kxc4 {[%clk 0:00:06]}  e4 {[%clk 0:00:10]} 48. Kc3 {[%clk 0:00:05]}  d5 {[%clk 0:00:10]} 49. Kd2 {[%clk 0:00:05]}  Kf5 {[%clk 0:00:10]} 50. Ke3 {[%clk 0:00:04]}  Kg4 {[%clk 0:00:11]} 51. Kd2 {[%clk 0:00:04]}  Kxh4 {[%clk 0:00:10]} 52. Ke3 {[%clk 0:00:04]}  Kg4 {[%clk 0:00:10]} 53. Kd2 {[%clk 0:00:04]}  h4 {[%clk 0:00:11]} 54. Kc3 {[%clk 0:00:05]}  h3 {[%clk 0:00:11]} 55. Kb4 {[%clk 0:00:06]}  h2 {[%clk 0:00:12]} 56. Kc5 {[%clk 0:00:07]}  h1=Q {[%clk 0:00:12]} 57. Kxd5 {[%clk 0:00:08]}  Qe1 {[%clk 0:00:11]} 58. Ke5 {[%clk 0:00:07]}  Qxa5+ {[%clk 0:00:12]} 59. Kxe4 {[%clk 0:00:07]}  Qd2 {[%clk 0:00:11]} 60. d5 {[%clk 0:00:07]}  Qxf2 {[%clk 0:00:11]} 61. Ke5 {[%clk 0:00:06]}  Qe2+ {[%clk 0:00:11]} 62. Kf6 {[%clk 0:00:06]}  f2 {[%clk 0:00:12]} 63. d6 {[%clk 0:00:07]}  f1=Q+ {[%clk 0:00:12]} 64. Kg7 {[%clk 0:00:08]}  Qe6 {[%clk 0:00:12]} 65. d7 {[%clk 0:00:04]}  Qff7+ {[%clk 0:00:12]} 0-1


[Site "https://www.chess.com"]

[Event "Titled Tuesday Blitz May 16 Early 2023"]
[White "agvania123"]
[Black "KorolDimitriy75"]
[WhiteElo "2229"]
[BlackElo "2464"]
[Result "1/2-1/2"]
[Round "11"]
[TimeControl "180+2"]
[Date "2023.05.16"]
[WhiteClock "0:02:33"]
[BlackClock "0:00:38"]

1. c4 {[%clk 0:03:00]}  c5 {[%clk 0:01:00]} 2. Nf3 {[%clk 0:03:01]}  g6 {[%clk 0:00:59]} 3. Nc3 {[%clk 0:03:01]}  Bg7 {[%clk 0:01:00]} 4. e4 {[%clk 0:03:01]}  Nc6 {[%clk 0:01:00]} 5. d3 {[%clk 0:03:02]}  d6 {[%clk 0:01:00]} 6. g3 {[%clk 0:03:02]}  Bg4 {[%clk 0:01:00]} 7. Bg2 {[%clk 0:03:00]}  e6 {[%clk 0:01:00]} 8. O-O {[%clk 0:02:59]}  Nd4 {[%clk 0:00:59]} 9. Be3 {[%clk 0:02:51]}  Ne7 {[%clk 0:00:59]} 10. Bxd4 {[%clk 0:02:37]}  Bxd4 {[%clk 0:00:57]} 11. h3 {[%clk 0:02:33]}  Bxf3 {[%clk 0:00:56]} 12. Bxf3 {[%clk 0:02:34]}  O-O {[%clk 0:00:38]} 13. Bg2 {[%clk 0:02:33]} 1/2-1/2


[Site "https://www.chess.com"]

[Event "Titled Tuesday Blitz May 16 Early 2023"]
[White "Grabinsky, Vladimir"]
[Black "Balla, Tamas-Kristof"]
[WhiteFideId "14107074"]
[BlackFideId "1208497"]
[WhiteElo "2027"]
[BlackElo "2334"]
[Result "0-1"]
[Round "11"]
[TimeControl "180+2"]
[Date "2023.05.16"]
[WhiteClock "0:00:00"]
[BlackClock "0:00:28"]

1. e4 {[%clk 0:02:43]}  d5 {[%clk 0:02:57]} 2. exd5 {[%clk 0:02:42]}  Qxd5 {[%clk 0:02:58]} 3. Nc3 {[%clk 0:02:42]}  Qa5 {[%clk 0:02:58]} 4. d4 {[%clk 0:02:43]}  Nf6 {[%clk 0:02:57]} 5. Bc4 {[%clk 0:02:42]}  c6 {[%clk 0:02:55]} 6. Ne2 {[%clk 0:02:41]}  Bf5 {[%clk 0:02:54]} 7. O-O {[%clk 0:02:38]}  e6 {[%clk 0:02:54]} 8. Ng3 {[%clk 0:02:39]}  Bg6 {[%clk 0:02:46]} 9. f4 {[%clk 0:02:39]}  Bd6 {[%clk 0:02:43]} 10. f5 {[%clk 0:02:39]}  Bxf5 {[%clk 0:02:02]} 11. Nxf5 {[%clk 0:02:37]}  exf5 {[%clk 0:02:02]} 12. Qe2+ {[%clk 0:02:30]}  Kf8 {[%clk 0:02:00]} 13. Bg5 {[%clk 0:02:25]}  Nbd7 {[%clk 0:02:00]} 14. Qd3 {[%clk 0:02:11]}  h6 {[%clk 0:01:53]} 15. Rxf5 {[%clk 0:02:09]}  Qc7 {[%clk 0:01:52]} 16. Bxf6 {[%clk 0:01:50]}  Bxh2+ {[%clk 0:01:51]} 17. Kh1 {[%clk 0:01:49]}  Nxf6 {[%clk 0:01:51]} 18. Raf1 {[%clk 0:01:37]}  Re8 {[%clk 0:01:49]} 19. Rxf6 {[%clk 0:00:57]}  gxf6 {[%clk 0:01:47]} 20. Ne4 {[%clk 0:00:57]}  Re7 {[%clk 0:01:09]} 21. Nxf6 {[%clk 0:00:48]}  Qg3 {[%clk 0:01:08]} 22. Nh5 {[%clk 0:00:17]}  Qxd3 {[%clk 0:01:06]} 23. cxd3 {[%clk 0:00:17]}  Bc7 {[%clk 0:01:04]} 24. Rf6 {[%clk 0:00:13]}  Rd7 {[%clk 0:00:50]} 25. g4 {[%clk 0:00:09]}  Bd8 {[%clk 0:00:49]} 26. Rf4 {[%clk 0:00:08]}  Bg5 {[%clk 0:00:48]} 27. Rf5 {[%clk 0:00:08]}  Rg8 {[%clk 0:00:48]} 28. Ng3 {[%clk 0:00:06]}  Rg6 {[%clk 0:00:48]} 29. Ne4 {[%clk 0:00:06]}  Kg7 {[%clk 0:00:46]} 30. Nc5 {[%clk 0:00:04]}  Rxd4 {[%clk 0:00:45]} 31. Rxf7+ {[%clk 0:00:02]}  Kh8 {[%clk 0:00:44]} 32. Ne6 {[%clk 0:00:01]}  Rxg4 {[%clk 0:00:39]} 33. Rf8+ {[%clk 0:00:01]}  Kh7 {[%clk 0:00:34]} 34. Rf7+ {[%clk 0:00:01]}  Kh8 {[%clk 0:00:34]} 35. Rf8+ {[%clk 0:00:01]}  Rg8 {[%clk 0:00:34]} 36. Rxg8+ {[%clk 0:00:01]}  Kxg8 {[%clk 0:00:35]} 37. Nxg5+ {[%clk 0:00:02]}  Kg7 {[%clk 0:00:35]} 38. Ne4 {[%clk 0:00:02]}  b5 {[%clk 0:00:33]} 39. Bb3 {[%clk 0:00:00]}  Kf8 {[%clk 0:00:28]} 0-1


[Site "https://www.chess.com"]

[Event "Titled Tuesday Blitz May 16 Early 2023"]
[White "rionelG"]
[Black "Ziatdinov, Raset"]
[BlackFideId "2015323"]
[WhiteElo "2228"]
[BlackElo "2220"]
[Result "0-1"]
[Round "11"]
[TimeControl "180+2"]
[Date "2023.05.16"]
[WhiteClock "0:00:00"]
[BlackClock "0:02:26"]

1. e4 {[%clk 0:03:00]}  e6 {[%clk 0:02:56]} 2. d3 {[%clk 0:02:55]}  d5 {[%clk 0:02:57]} 3. Nd2 {[%clk 0:02:54]}  Nf6 {[%clk 0:02:58]} 4. g3 {[%clk 0:02:54]}  c5 {[%clk 0:02:58]} 5. Bg2 {[%clk 0:02:54]}  Nc6 {[%clk 0:02:58]} 6. Ngf3 {[%clk 0:02:55]}  b6 {[%clk 0:02:58]} 7. O-O {[%clk 0:02:55]}  Bb7 {[%clk 0:02:59]} 8. Re1 {[%clk 0:02:55]}  Qc7 {[%clk 0:02:58]} 9. c3 {[%clk 0:02:56]}  Be7 {[%clk 0:02:58]} 10. a3 {[%clk 0:02:55]}  O-O-O {[%clk 0:02:56]} 11. b4 {[%clk 0:02:54]}  dxe4 {[%clk 0:02:55]} 12. dxe4 {[%clk 0:02:53]}  cxb4 {[%clk 0:02:54]} 13. axb4 {[%clk 0:02:53]}  Ne5 {[%clk 0:02:54]} 14. Nxe5 {[%clk 0:02:13]}  Qxe5 {[%clk 0:02:51]} 15. Rxa7 {[%clk 0:00:00]}  Qxc3 {[%clk 0:02:26]} 0-1


[Site "https://www.chess.com"]

[Event "Titled Tuesday Blitz May 16 Early 2023"]
[White "KSho99"]
[Black "Kopczynski, Michal"]
[BlackFideId "1124200"]
[WhiteElo "2162"]
[BlackElo "2212"]
[Result "0-1"]
[Round "11"]
[TimeControl "180+2"]
[Date "2023.05.16"]
[WhiteClock "0:00:00"]
[BlackClock "0:00:58"]

1. Nf3 {[%clk 0:03:00]}  d6 {[%clk 0:02:59]} 2. e4 {[%clk 0:02:59]}  g6 {[%clk 0:03:00]} 3. d4 {[%clk 0:02:55]}  Bg7 {[%clk 0:03:00]} 4. Nc3 {[%clk 0:02:56]}  Nd7 {[%clk 0:02:58]} 5. Bc4 {[%clk 0:02:46]}  c6 {[%clk 0:02:55]} 6. Bxf7+ {[%clk 0:02:39]}  Kxf7 {[%clk 0:02:54]} 7. Ng5+ {[%clk 0:02:39]}  Ke8 {[%clk 0:02:49]} 8. Ne6 {[%clk 0:02:39]}  Qa5 {[%clk 0:02:49]} 9. Bd2 {[%clk 0:02:08]}  Bh6 {[%clk 0:02:41]} 10. f4 {[%clk 0:01:52]}  Kf7 {[%clk 0:02:13]} 11. Nd5 {[%clk 0:01:36]}  Qa4 {[%clk 0:01:53]} 12. b3 {[%clk 0:01:15]}  Qa3 {[%clk 0:01:53]} 13. Bb4 {[%clk 0:00:58]}  Qb2 {[%clk 0:01:53]} 14. Bc3 {[%clk 0:00:44]}  Qxa1 {[%clk 0:01:49]} 15. Qxa1 {[%clk 0:00:40]}  cxd5 {[%clk 0:01:49]} 16. Nc7 {[%clk 0:00:36]}  Rb8 {[%clk 0:01:47]} 17. Nxd5 {[%clk 0:00:33]}  Ngf6 {[%clk 0:01:45]} 18. Nxf6 {[%clk 0:00:29]}  Nxf6 {[%clk 0:01:46]} 19. d5 {[%clk 0:00:25]}  Bg7 {[%clk 0:01:37]} 20. O-O {[%clk 0:00:20]}  Rf8 {[%clk 0:01:36]} 21. e5 {[%clk 0:00:16]}  Nh5 {[%clk 0:01:29]} 22. e6+ {[%clk 0:00:15]}  Kg8 {[%clk 0:01:28]} 23. g4 {[%clk 0:00:11]}  Bxc3 {[%clk 0:01:22]} 24. Qxc3 {[%clk 0:00:11]}  Nxf4 {[%clk 0:01:23]} 25. Qe3 {[%clk 0:00:07]}  Nxd5 {[%clk 0:01:18]} 26. Rxf8+ {[%clk 0:00:06]}  Kxf8 {[%clk 0:01:19]} 27. Qf3+ {[%clk 0:00:06]}  Nf6 {[%clk 0:01:11]} 28. g5 {[%clk 0:00:07]}  Bxe6 {[%clk 0:01:10]} 29. gxf6 {[%clk 0:00:07]}  Rc8 {[%clk 0:01:06]} 30. Qxb7 {[%clk 0:00:03]}  exf6 {[%clk 0:01:03]} 31. Qxh7 {[%clk 0:00:00]}  Rxc2 {[%clk 0:00:58]} 0-1


[Site "https://www.chess.com"]

[Event "Titled Tuesday Blitz May 16 Early 2023"]
[White "dDobravcan"]
[Black "Fajdetic, Hrvoje"]
[BlackFideId "14501945"]
[WhiteElo "2142"]
[BlackElo "2185"]
[Result "1-0"]
[Round "11"]
[TimeControl "180+2"]
[Date "2023.05.16"]
[WhiteClock "0:00:22"]
[BlackClock "0:00:00"]

1. d4 {[%clk 0:03:00]}  d5 {[%clk 0:02:52]} 2. Nc3 {[%clk 0:03:00]}  e6 {[%clk 0:02:51]} 3. Bf4 {[%clk 0:03:00]}  a6 {[%clk 0:02:47]} 4. e3 {[%clk 0:03:00]}  c5 {[%clk 0:02:45]} 5. Nf3 {[%clk 0:02:54]}  Qb6 {[%clk 0:02:40]} 6. dxc5 {[%clk 0:02:45]}  Bxc5 {[%clk 0:02:27]} 7. Rb1 {[%clk 0:02:43]}  Bd6 {[%clk 0:02:21]} 8. Bd3 {[%clk 0:02:21]}  Nf6 {[%clk 0:02:11]} 9. Bg3 {[%clk 0:02:12]}  O-O {[%clk 0:02:05]} 10. O-O {[%clk 0:02:10]}  Bxg3 {[%clk 0:02:04]} 11. hxg3 {[%clk 0:02:08]}  Nc6 {[%clk 0:02:02]} 12. e4 {[%clk 0:02:00]}  dxe4 {[%clk 0:02:00]} 13. Nxe4 {[%clk 0:02:00]}  Nxe4 {[%clk 0:02:00]} 14. Bxe4 {[%clk 0:02:00]}  Rd8 {[%clk 0:01:50]} 15. Qe2 {[%clk 0:01:56]}  h6 {[%clk 0:01:14]} 16. c3 {[%clk 0:01:51]}  Bd7 {[%clk 0:00:52]} 17. g4 {[%clk 0:01:46]}  Be8 {[%clk 0:00:41]} 18. g5 {[%clk 0:01:36]}  hxg5 {[%clk 0:00:36]} 19. Nxg5 {[%clk 0:01:34]}  g6 {[%clk 0:00:35]} 20. Qg4 {[%clk 0:01:11]}  Qc5 {[%clk 0:00:18]} 21. Qh4 {[%clk 0:01:00]}  Qe5 {[%clk 0:00:17]} 22. Rfe1 {[%clk 0:00:53]}  Qg7 {[%clk 0:00:17]} 23. Bc2 {[%clk 0:00:49]}  Ne7 {[%clk 0:00:15]} 24. Bb3 {[%clk 0:00:45]}  Nf5 {[%clk 0:00:14]} 25. Qf4 {[%clk 0:00:40]}  Bc6 {[%clk 0:00:12]} 26. Rxe6 {[%clk 0:00:32]}  fxe6 {[%clk 0:00:13]} 27. Nxe6 {[%clk 0:00:31]}  Qf6 {[%clk 0:00:04]} 28. Nxd8+ {[%clk 0:00:27]}  Kh7 {[%clk 0:00:00]} 29. Nf7 {[%clk 0:00:22]} 1-0


[Site "https://www.chess.com"]

[Event "Titled Tuesday Blitz May 16 Early 2023"]
[White "Clawitter, Craig"]
[Black "Torres Dominguez, David"]
[WhiteFideId "2023105"]
[BlackFideId "2220857"]
[WhiteElo "2263"]
[BlackElo "1999"]
[Result "1-0"]
[Round "11"]
[TimeControl "180+2"]
[Date "2023.05.16"]
[WhiteClock "0:00:04"]
[BlackClock "0:00:00"]

1. e4 {[%clk 0:03:00]}  e6 {[%clk 0:02:55]} 2. d4 {[%clk 0:03:00]}  d5 {[%clk 0:02:55]} 3. e5 {[%clk 0:03:01]}  c5 {[%clk 0:02:55]} 4. c3 {[%clk 0:03:00]}  Nc6 {[%clk 0:02:55]} 5. Nf3 {[%clk 0:02:57]}  Qb6 {[%clk 0:02:53]} 6. a3 {[%clk 0:02:56]}  f6 {[%clk 0:02:51]} 7. Bd3 {[%clk 0:02:52]}  f5 {[%clk 0:02:49]} 8. dxc5 {[%clk 0:02:37]}  Bxc5 {[%clk 0:02:45]} 9. O-O {[%clk 0:02:38]}  Qc7 {[%clk 0:02:34]} 10. b4 {[%clk 0:02:26]}  Bb6 {[%clk 0:02:30]} 11. c4 {[%clk 0:02:19]}  dxc4 {[%clk 0:02:25]} 12. Bxc4 {[%clk 0:02:09]}  Nge7 {[%clk 0:02:26]} 13. Qb3 {[%clk 0:01:55]}  Nxe5 {[%clk 0:02:18]} 14. Nxe5 {[%clk 0:01:47]}  Qxe5 {[%clk 0:02:18]} 15. Bb2 {[%clk 0:01:48]}  Qf4 {[%clk 0:02:06]} 16. Bxe6 {[%clk 0:01:28]}  Qh6 {[%clk 0:01:29]} 17. Bf7+ {[%clk 0:01:14]}  Kf8 {[%clk 0:01:26]} 18. Nc3 {[%clk 0:01:07]}  Bc7 {[%clk 0:01:22]} 19. g3 {[%clk 0:01:01]}  f4 {[%clk 0:01:20]} 20. Nd5 {[%clk 0:00:59]}  Nxd5 {[%clk 0:00:51]} 21. Bxd5 {[%clk 0:00:52]}  Bh3 {[%clk 0:00:44]} 22. Rfc1 {[%clk 0:00:32]}  Bb6 {[%clk 0:00:39]} 23. Qf3 {[%clk 0:00:12]}  Rd8 {[%clk 0:00:30]} 24. Rd1 {[%clk 0:00:06]}  Qg5 {[%clk 0:00:13]} 25. Qxf4+ {[%clk 0:00:06]}  Qxf4 {[%clk 0:00:12]} 26. gxf4 {[%clk 0:00:07]}  Bf5 {[%clk 0:00:10]} 27. Bxb7 {[%clk 0:00:07]}  Rxd1+ {[%clk 0:00:09]} 28. Rxd1 {[%clk 0:00:07]}  Ke7 {[%clk 0:00:09]} 29. Bf3 {[%clk 0:00:06]}  Rd8 {[%clk 0:00:06]} 30. Rxd8 {[%clk 0:00:05]}  Kxd8 {[%clk 0:00:07]} 31. Bxg7 {[%clk 0:00:06]}  Ke7 {[%clk 0:00:07]} 32. Kg2 {[%clk 0:00:06]}  a5 {[%clk 0:00:06]} 33. Bc3 {[%clk 0:00:05]}  a4 {[%clk 0:00:06]} 34. Bd1 {[%clk 0:00:05]}  Bd7 {[%clk 0:00:06]} 35. Kf3 {[%clk 0:00:04]}  Bc7 {[%clk 0:00:06]} 36. Ke4 {[%clk 0:00:04]}  Bc6+ {[%clk 0:00:06]} 37. Ke3 {[%clk 0:00:03]}  Ke6 {[%clk 0:00:05]} 38. Be5 {[%clk 0:00:03]}  Bxe5 {[%clk 0:00:03]} 39. fxe5 {[%clk 0:00:03]}  Kxe5 {[%clk 0:00:04]} 40. f4+ {[%clk 0:00:04]}  Kf5 {[%clk 0:00:03]} 41. h3 {[%clk 0:00:04]}  Kf6 {[%clk 0:00:03]} 42. Bf3 {[%clk 0:00:03]}  Bd7 {[%clk 0:00:03]} 43. Bg4 {[%clk 0:00:03]}  Bc6 {[%clk 0:00:03]} 44. Kd4 {[%clk 0:00:02]}  h6 {[%clk 0:00:04]} 45. Kc5 {[%clk 0:00:03]}  Be8 {[%clk 0:00:03]} 46. b5 {[%clk 0:00:03]}  h5 {[%clk 0:00:04]} 47. Bf3 {[%clk 0:00:02]}  Kf5 {[%clk 0:00:04]} 48. b6 {[%clk 0:00:02]}  Kxf4 {[%clk 0:00:05]} 49. b7 {[%clk 0:00:02]}  Kxf3 {[%clk 0:00:04]} 50. b8=Q {[%clk 0:00:02]}  Bd7 {[%clk 0:00:04]} 51. Qd6 {[%clk 0:00:02]}  Bxh3 {[%clk 0:00:05]} 52. Qd5+ {[%clk 0:00:02]}  Kg3 {[%clk 0:00:04]} 53. Qxh5 {[%clk 0:00:02]}  Bg4 {[%clk 0:00:04]} 54. Qg5 {[%clk 0:00:02]}  Kf3 {[%clk 0:00:04]} 55. Kb4 {[%clk 0:00:02]}  Be6 {[%clk 0:00:03]} 56. Qf6+ {[%clk 0:00:02]}  Ke4 {[%clk 0:00:03]} 57. Qxe6+ {[%clk 0:00:02]}  Kd4 {[%clk 0:00:03]} 58. Qd7+ {[%clk 0:00:03]}  Ke4 {[%clk 0:00:03]} 59. Qxa4 {[%clk 0:00:04]}  Kf4 {[%clk 0:00:00]} 60. Qb3 {[%clk 0:00:04]} 1-0


[Site "https://www.chess.com"]